[Event "LTU-ch Men 2019"]
[Site "Vilnius"]
[Date "2019.03.20"]
[Round "8.7"]
[White "Indriunas, Matas"]
[Black "Eigminas, Kipras"]
[Result "1/2-1/2"]
[ECO "B76"]
[WhiteElo "1908"]
[BlackElo "2034"]
[Annotator "NA RC"]
[PlyCount "102"]
[EventDate "2019.??.??"]
[EventCountry "LTU"]
[SourceTitle "playchess.com"]
[Source "ChessBase"]
[SourceQuality "1"]
[TimeControl "5400+30"]

1. e4 {[%emt 0:00:00]} c5 {[%emt 0:00:00]} 2. Nf3 {[%emt 0:00:11]} d6 {[%emt 0:00:00]} 3. d4 {[%emt 0:00:00]} cxd4 {[%emt 0:00:00]} 4. Nxd4 {[%emt 0:00:00]} Nf6 {[%emt 0:00:00]} 5. Nc3 {[%emt 0:00:09]} g6 {[%emt 0:00:00]} 6. Be3 {[%emt 0:00:08]} Bg7 {[%emt 0:00:00]} 7. f3 {[%emt 0:00:06]} O-O {[%emt 0:00:00]} 8. Qd2 {[%emt 0:00:05]} Nc6 {[%emt 0:00:00]} 9. O-O-O {[%emt 0:00:08]} d5 {[%emt 0:00:00]} 10. Qe1 {[%emt 0:00:24]} e5 {[%emt 0:00:11]} 11. Nxc6 {[%emt 0:00:21]} bxc6 {[%emt 0:00:02]} 12. exd5 {[%emt 0:00:22]} Nxd5 {[%emt 0:01:07]} 13. Bc4 {[%emt 0:00:13]} Be6 {[%emt 0:00:10]} 14. Bc5 {[%emt 0:00:14]} Qg5+ {[%emt 0:05:42]} 15. Kb1 {[%emt 0:21:31]} Nxc3+ {[%emt 0:01:05]} 16. Qxc3 {[%emt 0:00:15]} Bxc4 {[%emt 0:04:45]} 17. Bxf8 {[%emt 0:24:10]} Bxa2+ {[%emt 0:01:24]} 18. Kxa2 {[%emt 0:00:06]} Rxf8 {[%emt 0:00:04]} 19. Qd2 {[%emt 0:02:24]} Qh4 {[%emt 0:00:32]} 20. Qd3 {[%emt 0:07:02]} Qa4+ {[%emt 0:00:44]} 21. Kb1 {[%emt 0:03:04]} Rb8 {[%emt 0:00:02]} 22. b3 {[%emt 0:09:29]} Qa5 {[%emt 0:01:22]} 23. Qe4 {[%emt 0:02:05]} h6 {[%emt 0:02:16]} 24. Rd7 {[%emt 0:04:14]} Rb4 {[%emt 0:00:27]} 25. Rxa7 {[%emt 0:01:17]} Qc5 {[%emt 0:04:25]} 26. Ra8+ {[%emt 0:02:27]} Kh7 {[%emt 0:00:02]} 27. Qe2 {[%emt 0:02:03]} e4 {[%emt 0:03:45]} 28. fxe4 {[%emt 0:00:54]} Qe5 {[%emt 0:00:17]} 29. Ra2 {[%emt 0:00:43]} Rxe4 {[%emt 0:00:06]} 30. Qd2 {[%emt 0:03:57]} Re2 {[%emt 0:01:39]} 31. Qa5 {[%emt 0:01:01]} c5 {[%emt 0:01:01]} 32. Rc1 {[%emt 0:03:28]} Rxg2 {[%emt 0:01:12]} 33. b4 {[%emt 0:02:12]} cxb4 {[%emt 0:08:03]} 34. Qxe5 {[%emt 0:00:44]} Bxe5 {[%emt 0:00:04]} 35. c4 {[%emt 0:02:01]} Rxh2 {[%emt 0:01:16]} 36. Rxh2 {[%emt 0:02:03]} Bxh2 {[%emt 0:00:39]} 37. c5 {[%emt 0:00:05]} g5 {[%emt 0:00:14]} 38. c6 {[%emt 0:00:23]} Bc7 {[%emt 0:00:04]} 39. Rd1 {[%emt 0:00:19]} g4 {[%emt 0:00:46]} 40. Kc2 {[%emt 0:02:02]} g3 {[%emt 0:00:47]} 41. Kd3 {[%emt 0:00:11]} Kg6 {[%emt 0:02:54]} 42. Ke2 {[%emt 0:00:19]} b3 {[%emt 0:02:43]} 43. Kf3 {[%emt 0:00:20]} Kf5 {[%emt 0:01:06]} 44. Rb1 {[%emt 0:01:02]} Ke6 {[%emt 0:00:17]} 45. Rxb3 {[%emt 0:00:10]} h5 {[%emt 0:01:51]} 46. Rb7 {[%emt 0:02:04]} Kd6 {[%emt 0:00:08]} 47. Rb5 {[%emt 0:00:04]} h4 {[%emt 0:00:13]} 48. Rh5 {[%emt 0:00:28]} Bd8 {[%emt 0:00:30]} 49. Rh7 {[%emt 0:00:09]} Bc7 {[%emt 0:02:00]} 50. Rxf7 {[%emt 0:01:34]} h3 {[%emt 0:00:08]} 51. Kxg3 {[%emt 0:01:00]} Kxc6+ {[%emt 0:00:06]} 1/2-1/2

[Event "LTU-ch Men 2019"]
[Site "Vilnius"]
[Date "2019.03.20"]
[Round "8.11"]
[White "Pluta, Paulius"]
[Black "Butvilas, Aistis"]
[Result "1/2-1/2"]
[ECO "B22"]
[WhiteElo "1846"]
[BlackElo "1983"]
[Annotator "NA RC"]
[PlyCount "103"]
[EventDate "2019.??.??"]
[EventCountry "LTU"]
[SourceTitle "playchess.com"]
[Source "ChessBase"]
[SourceQuality "1"]
[TimeControl "5400+30"]

1. e4 {[%emt 0:00:04]} c5 {[%emt 0:00:00]} 2. c3 {[%emt 0:00:11]} d5 {[%emt 0:00:00]} 3. exd5 {[%emt 0:00:05]} Qxd5 {[%emt 0:00:00]} 4. d4 {[%emt 0:00:04]} Nf6 {[%emt 0:00:05]} 5. Nf3 {[%emt 0:00:06]} Bg4 {[%emt 0:00:30]} 6. Be2 {[%emt 0:00:05]} e6 {[%emt 0:00:30]} 7. h3 {[%emt 0:00:08]} Bh5 {[%emt 0:00:11]} 8. O-O {[%emt 0:00:04]} Nc6 {[%emt 0:00:26]} 9. Be3 {[%emt 0:00:09]} cxd4 {[%emt 0:00:14]} 10. cxd4 {[%emt 0:00:06]} Be7 {[%emt 0:00:27]} 11. Nc3 {[%emt 0:00:05]} Qd6 {[%emt 0:00:13]} 12. Qb3 {[%emt 0:00:17]} O-O {[%emt 0:00:27]} 13. Rfd1 {[%emt 0:00:03]} Rfd8 {[%emt 0:01:49]} 14. a3 {[%emt 0:05:19]} a6 {[%emt 0:09:38]} 15. Rd2 {[%emt 0:06:46]} Nd5 {[%emt 0:26:52]} 16. Nxd5 {[%emt 0:09:11]} Qxd5 {[%emt 0:00:52]} 17. Bc4 {[%emt 0:00:07]} Qd6 {[%emt 0:01:10]} 18. Be2 {[%emt 0:04:20]} Na5 {[%emt 0:06:25]} 19. Qa2 {[%emt 0:00:06]} Qd5 {[%emt 0:00:22]} 20. Qxd5 {[%emt 0:02:55]} exd5 {[%emt 0:05:39]} 21. Rc2 {[%emt 0:00:12]} b5 {[%emt 0:06:27]} 22. Bf4 {[%emt 0:02:17]} Nb3 {[%emt 0:03:05]} 23. Rd1 {[%emt 0:00:07]} Rac8 {[%emt 0:02:11]} 24. Rxc8 {[%emt 0:04:41]} Rxc8 {[%emt 0:00:05]} 25. g4 {[%emt 0:02:14]} Bg6 {[%emt 0:00:22]} 26. Re1 {[%emt 0:01:16]} Bf6 {[%emt 0:05:24]} 27. g5 {[%emt 0:00:25]} Bxd4 {[%emt 0:02:33]} 28. Bd1 {[%emt 0:00:08]} Be4 {[%emt 0:04:07]} 29. Nxd4 {[%emt 0:01:28]} Nxd4 {[%emt 0:00:14]} 30. Be3 {[%emt 0:00:40]} Nf3+ {[%emt 0:02:04]} 31. Bxf3 {[%emt 0:00:10]} Bxf3 {[%emt 0:00:03]} 32. Rc1 {[%emt 0:00:05]} Rxc1+ {[%emt 0:02:23]} 33. Bxc1 {[%emt 0:00:04]} d4 {[%emt 0:00:59]} 34. Kf1 {[%emt 0:00:13]} Kf8 {[%emt 0:00:46]} 35. Ke1 {[%emt 0:00:06]} Ke7 {[%emt 0:00:53]} 36. Bf4 {[%emt 0:01:43]} Ke6 {[%emt 0:00:46]} 37. h4 {[%emt 0:00:05]} Kf5 {[%emt 0:01:48]} 38. Bd6 {[%emt 0:00:58]} f6 {[%emt 0:05:31]} 39. gxf6 {[%emt 0:00:19]} gxf6 {[%emt 0:00:29]} 40. Kd2 {[%emt 0:00:15]} Ke4 {[%emt 0:03:51]} 41. Be7 {[%emt 0:00:23]} f5 {[%emt 0:00:46]} 42. Bg5 {[%emt 0:00:24]} Bh5 {[%emt 0:00:56]} 43. Bf6 {[%emt 0:00:10]} Bf7 {[%emt 0:02:09]} 44. Bg7 {[%emt 0:00:11]} a5 {[%emt 0:00:47]} 45. Bf6 {[%emt 0:00:10]} a4 {[%emt 0:01:06]} 46. Bg7 {[%emt 0:00:06]} Bc4 {[%emt 0:00:05]} 47. Bf6 {[%emt 0:00:08]} d3 {[%emt 0:03:00]} 48. Bg7 {[%emt 0:00:08]} Kf3 {[%emt 0:00:06]} 49. Bd4 {[%emt 0:00:08]} h5 {[%emt 0:00:39]} 50. Bc5 {[%emt 0:00:13]} Kg4 {[%emt 0:00:29]} 51. Be7 {[%emt 0:00:05]} f4 {[%emt 0:00:17]} 52. Bf6 {[%emt 0:00:19]} 1/2-1/2

[Event "LTU-ch Men 2019"]
[Site "Vilnius"]
[Date "2019.03.20"]
[Round "8.13"]
[White "Povilaitis, Tomas"]
[Black "Stremavicius, Pijus"]
[Result "0-1"]
[ECO "B07"]
[WhiteElo "1864"]
[BlackElo "2079"]
[Annotator "NA RC"]
[PlyCount "124"]
[EventDate "2019.??.??"]
[EventCountry "LTU"]
[SourceTitle "playchess.com"]
[Source "ChessBase"]
[SourceQuality "1"]
[TimeControl "5400+30"]

1. e4 {[%emt 0:00:00]} d6 {[%emt 0:00:00]} 2. d4 {[%emt 0:00:00]} Nf6 {[%emt 0:00:00]} 3. Nc3 {[%emt 0:00:02]} g6 {[%emt 0:00:00]} 4. Be3 {[%emt 0:00:28]} c6 {[%emt 0:00:05]} 5. Nf3 {[%emt 0:00:19]} Nbd7 {[%emt 0:01:09]} 6. h3 {[%emt 0:01:32]} Bg7 {[%emt 0:00:30]} 7. Bd3 {[%emt 0:07:38]} O-O {[%emt 0:03:25]} 8. O-O {[%emt 0:00:34]} e5 {[%emt 0:01:09]} 9. Qd2 {[%emt 0:03:01]} Re8 {[%emt 0:00:32]} 10. Bh6 {[%emt 0:02:29]} exd4 {[%emt 0:00:14]} 11. Nxd4 {[%emt 0:01:13]} Nc5 {[%emt 0:00:23]} 12. Bxg7 $11 {[%emt 0:00:40]} Kxg7 {[%emt 0:00:06]} 13. Rae1 {[%emt 0:00:23]} Qb6 {[%emt 0:00:53]} 14. Nb3 {[%emt 0:02:37]} Be6 {[%emt 0:00:28]} 15. Nxc5 {[%emt 0:07:23]} dxc5 {[%emt 0:04:55]} 16. e5 {[%emt 0:06:24]} Nd7 {[%emt 0:01:20]} 17. b3 {[%emt 0:03:16]} Rad8 {[%emt 0:03:05]} 18. Qg5 {[%emt 0:03:58]} c4 {[%emt 0:03:03]} 19. bxc4 {[%emt 0:02:33]} Qd4 {[%emt 0:01:50]} 20. Nd1 {[%emt 0:07:46]} h6 {[%emt 0:06:18]} 21. Qg3 {[%emt 0:00:35]} Nc5 {[%emt 0:01:40]} 22. Ne3 {[%emt 0:02:55]} Nxd3 {[%emt 0:04:34]} 23. cxd3 {[%emt 0:00:15]} Qxd3 {[%emt 0:00:09]} 24. Qh4 {[%emt 0:08:45]} Rd4 {[%emt 0:10:16]} 25. Qf6+ {[%emt 0:00:29]} Kg8 {[%emt 0:00:52]} 26. Rd1 {[%emt 0:00:41]} Qe4 {[%emt 0:00:58]} 27. Rxd4 {[%emt 0:00:07]} Qxd4 28. Rd1 {[%emt 0:00:14]} Qe4 {[%emt 0:00:31]} 29. Rd8 {[%emt 0:08:53]} Rxd8 {[%emt 0:04:14]} 30. Qxd8+ {[%emt 0:00:05]} Kh7 {[%emt 0:00:04]} 31. Qc7 {[%emt 0:00:30]} Qb1+ {[%emt 0:04:08]} 32. Kh2 {[%emt 0:00:09]} h5 {[%emt 0:00:13]} 33. Qa5 {[%emt 0:04:38]} Qb2 {[%emt 0:00:59]} 34. Kg1 {[%emt 0:00:42]} b6 {[%emt 0:01:51]} 35. Qxa7 {[%emt 0:03:10]} Qa1+ {[%emt 0:00:03]} 36. Kh2 {[%emt 0:00:20]} Qxe5+ {[%emt 0:00:03]} 37. Kg1 {[%emt 0:01:03]} b5 {[%emt 0:00:05]} 38. cxb5 {[%emt 0:00:58]} cxb5 39. Qa5 {[%emt 0:04:22]} Qa1+ {[%emt 0:01:20]} 40. Kh2 {[%emt 0:01:37]} Qb2 {[%emt 0:00:05]} 41. a3 {[%emt 0:05:17]} Qxf2 {[%emt 0:00:05]} 42. Qc3 {[%emt 0:00:13]} Qf4+ {[%emt 0:00:12]} 43. Kg1 {[%emt 0:00:39]} Qe4 {[%emt 0:00:31]} 44. Nc2 {[%emt 0:03:12]} Bc4 {[%emt 0:00:38]} 45. Nb4 {[%emt 0:00:49]} g5 {[%emt 0:02:42]} 46. Qd2 {[%emt 0:03:10]} Qf5 {[%emt 0:02:33]} 47. Qd1 {[%emt 0:01:43]} g4 {[%emt 0:01:09]} 48. hxg4 {[%emt 0:00:22]} hxg4 {[%emt 0:00:21]} 49. Qe1 {[%emt 0:00:32]} Kg6 {[%emt 0:00:39]} 50. Qe3 {[%emt 0:02:07]} Qg5 {[%emt 0:01:22]} 51. Qg3 {[%emt 0:00:18]} f5 {[%emt 0:01:57]} 52. Nc6 {[%emt 0:00:32]} f4 {[%emt 0:00:29]} 53. Qe1 {[%emt 0:04:13]} Qc5+ {[%emt 0:00:06]} 54. Qf2 {[%emt 0:00:27]} Qxc6 {[%emt 0:00:07]} 55. Qxf4 {[%emt 0:00:06]} Qe6 {[%emt 0:00:18]} 56. Kh2 {[%emt 0:01:02]} Bd5 {[%emt 0:00:45]} 57. Qf8 {[%emt 0:00:29]} Qe4 {[%emt 0:02:17]} 58. Qf2 {[%emt 0:00:27]} Qe5+ {[%emt 0:00:25]} 59. Kg1 {[%emt 0:00:31]} g3 {[%emt 0:00:15]} 60. Qc2+ {[%emt 0:00:07]} Be4 {[%emt 0:00:15]} 61. Qd1 {[%emt 0:00:32]} Qc5+ {[%emt 0:00:30]} 62. Kh1 {[%emt 0:00:08]} Bxg2+ {[%emt 0:00:28] a4} 0-1

[Event "LTU-ch Men 2019"]
[Site "Vilnius"]
[Date "2019.03.20"]
[Round "8.14"]
[White "Maziukas, Kasparas"]
[Black "Ketlerius, Arijus"]
[Result "1/2-1/2"]
[ECO "B03"]
[WhiteElo "1931"]
[BlackElo "1841"]
[Annotator "NA RC"]
[PlyCount "125"]
[EventDate "2019.??.??"]
[EventCountry "LTU"]
[SourceTitle "playchess.com"]
[Source "ChessBase"]
[SourceQuality "1"]
[TimeControl "5400+30"]

1. e4 {[%emt 0:00:00]} Nf6 {[%emt 0:00:00]} 2. e5 {[%emt 0:00:00]} Nd5 {[%emt 0:00:00]} 3. c4 {[%emt 0:00:00]} Nb6 {[%emt 0:00:00]} 4. d4 {[%emt 0:00:00]} d6 {[%emt 0:00:00]} 5. exd6 {[%emt 0:00:00]} cxd6 {[%emt 0:00:08]} 6. Nc3 {[%emt 0:00:04]} g6 {[%emt 0:00:05]} 7. Be3 {[%emt 0:00:08]} Bg7 {[%emt 0:00:05]} 8. Rc1 {[%emt 0:00:12]} O-O {[%emt 0:00:08]} 9. b3 {[%emt 0:00:05]} e5 {[%emt 0:00:13]} 10. dxe5 {[%emt 0:00:10]} dxe5 {[%emt 0:00:02]} 11. Qxd8 {[%emt 0:00:30]} Rxd8 {[%emt 0:00:01]} 12. c5 {[%emt 0:00:34]} N6d7 {[%emt 0:00:04]} 13. Bc4 {[%emt 0:01:06]} Nc6 {[%emt 0:00:05]} 14. Rd1 {[%emt 0:05:21]} Nd4 {[%emt 0:05:28]} 15. Ne4 {[%emt 0:01:45]} Nf8 {[%emt 0:34:58]} 16. Bg5 {[%emt 0:09:21]} Nc2+ {[%emt 0:06:19]} 17. Ke2 {[%emt 0:00:09]} Rxd1 {[%emt 0:00:05]} 18. Kxd1 {[%emt 0:00:05]} Nd4 {[%emt 0:00:08]} 19. Ne2 {[%emt 0:10:54]} Be6 {[%emt 0:03:07]} 20. Nxd4 {[%emt 0:13:42]} exd4 {[%emt 0:11:06]} 21. Bb5 {[%emt 0:09:59]} f5 {[%emt 0:02:42]} 22. Nd6 {[%emt 0:01:36]} Bd5 {[%emt 0:00:32]} 23. b4 {[%emt 0:08:18]} a5 {[%emt 0:02:48]} 24. bxa5 {[%emt 0:02:33]} Rxa5 {[%emt 0:01:06]} 25. a4 {[%emt 0:00:23]} Ne6 {[%emt 0:03:59]} 26. Bd2 {[%emt 0:00:41]} Ra8 {[%emt 0:00:20]} 27. Bb4 {[%emt 0:05:19]} Nc7 {[%emt 0:09:19]} 28. a5 {[%emt 0:00:46]} Nxb5 {[%emt 0:03:52]} 29. Nxb5 {[%emt 0:00:07]} Bxg2 {[%emt 0:00:38]} 30. Re1 {[%emt 0:00:16]} Bc6 {[%emt 0:03:15]} 31. Nd6 {[%emt 0:01:26]} Bf6 {[%emt 0:01:59]} 32. f4 {[%emt 0:01:31]} Kg7 {[%emt 0:02:42]} 33. Kd2 {[%emt 0:00:47]} Rf8 {[%emt 0:00:52]} 34. Kd3 {[%emt 0:06:52]} Kh6 {[%emt 0:00:10]} 35. Bd2 {[%emt 0:03:47]} Ra8 {[%emt 0:04:42]} 36. Re6 {[%emt 0:01:56]} Kg7 {[%emt 0:00:42]} 37. Re1 {[%emt 0:01:43]} Bd8 {[%emt 0:01:48]} 38. Kxd4 {[%emt 0:00:29]} Bxa5 {[%emt 0:00:17]} 39. Ra1 {[%emt 0:00:12]} b6 {[%emt 0:00:32]} 40. Bxa5 {[%emt 0:01:02]} Rxa5 {[%emt 0:00:48]} 41. Rxa5 {[%emt 0:00:14]} bxa5 {[%emt 0:00:01]} 42. Nc4 {[%emt 0:00:56]} a4 {[%emt 0:00:15]} 43. Ne5 {[%emt 0:00:43]} a3 {[%emt 0:01:05]} 44. Kc3 {[%emt 0:00:18]} a2 {[%emt 0:00:07]} 45. Kb2 {[%emt 0:00:09]} Bd5 {[%emt 0:00:09]} 46. c6 {[%emt 0:02:55]} Be6 {[%emt 0:00:17]} 47. c7 {[%emt 0:02:21]} Kf6 {[%emt 0:00:23]} 48. Nf3 {[%emt 0:00:43]} h6 {[%emt 0:00:47]} 49. h4 {[%emt 0:00:28]} Ke7 {[%emt 0:01:02]} 50. Nd4 {[%emt 0:02:09]} Bc8 {[%emt 0:00:19]} 51. Kxa2 {[%emt 0:02:36]} Kd6 {[%emt 0:00:15]} 52. Kb3 {[%emt 0:00:42]} Kxc7 {[%emt 0:00:17]} 53. Kc4 {[%emt 0:00:19]} Kd6 {[%emt 0:00:48]} 54. Nb5+ {[%emt 0:01:52]} Ke6 {[%emt 0:00:38]} 55. Kd4 {[%emt 0:00:16]} Bd7 {[%emt 0:00:34]} 56. Nc7+ {[%emt 0:00:29]} Kd6 {[%emt 0:00:41]} 57. Nd5 {[%emt 0:00:13]} Bc6 {[%emt 0:00:18]} 58. Ne3 {[%emt 0:00:15]} Be4 {[%emt 0:00:40]} 59. Nc4+ {[%emt 0:00:15]} Ke6 {[%emt 0:00:05]} 60. Ne5 {[%emt 0:00:23]} Kf6 {[%emt 0:00:17]} 61. Nd7+ {[%emt 0:00:24]} Ke7 {[%emt 0:02:06]} 62. Ne5 {[%emt 0:00:07]} Kf6 {[%emt 0:00:57]} 63. Nd7+ {[%emt 0:00:06]} 1/2-1/2

[Event "LTU-ch Men 2019"]
[Site "Vilnius"]
[Date "2019.03.21"]
[Round "9.11"]
[White "Stremavicius, Pijus"]
[Black "Koliasnikovas, Aironas"]
[Result "1-0"]
[ECO "D30"]
[WhiteElo "2079"]
[BlackElo "1860"]
[Annotator "NA RC"]
[PlyCount "113"]
[EventDate "2019.??.??"]
[EventCountry "LTU"]
[SourceTitle "playchess.com"]
[Source "ChessBase"]
[SourceQuality "1"]
[TimeControl "5400+30"]

{[%evp 11,106,0,0,0,10,5,12,0,14,6,0,-34,-20,-31,-25,-27,-37,-52,-28,-41,-17,-27,32767,32767,32767,-34,0,-17,-10,-13,0,-56,-29,-20,-48,-36,-60,-62,-50,-44,-37,-125,-95,-206,-205,32767,-162,-250,-216,-294,-129,-84,-28,-22,32767,32767,32767,32767,32767,32767,32767,32767,32767,32767,186,32767,177,227,32767,32767,32767,32767,32767,32767,32767,249,381,295,349,404,32767,32767,485,721,434,582,551,696,921,1004,32767,32767,32767,32767,1397,5824,29971]} 1. d4 {[%emt 0:00:00]} d5 {[%emt 0:00:00]} 2. c4 {[%emt 0:00:00]} e6 {[%emt 0:00:00]} 3. Nf3 {[%emt 0:00:00]} Nf6 {[%emt 0:00:00]} 4. g3 {[%emt 0:00:34]} Bb4+ {[%emt 0:00:13]} 5. Bd2 {[%emt 0:00:43]} Be7 {[%emt 0:00:05]} 6. Bg2 {[%emt 0:00:16]} O-O {[%emt 0:01:47]} 7. O-O {[%emt 0:00:40]} c6 {[%emt 0:01:02]} 8. Qc2 {[%emt 0:02:48]} Nbd7 {[%emt 0:03:29]} 9. Bf4 {[%emt 0:00:46]} b6 {[%emt 0:01:25]} 10. Nbd2 {[%emt 0:02:01]} Bb7 {[%emt 0:01:53]} 11. a4 $146 {[%emt 0:11:28] E08: Closed Catalan: Main Line: 7 Qc2} ({Predecessor:} 11. e4 dxe4 12. Nxe4 Nxe4 13. Qxe4 Nf6 14. Qe2 c5 15. Rfd1 cxd4 16. Nxd4 Qc8 17. Bxb7 Qxb7 18. Qf3 Qxf3 19. Nxf3 Rfc8 20. b3 Kf8 21. Ne5 {½-½ (29) Postny,E (2636)-Vitiugov,N (2739) Tsaghkadzor 2015}) 11... Nh5 {[%emt 0:02:07]} 12. a5 {[%emt 0:01:01]} Nxf4 {[%emt 0:02:12]} 13. gxf4 {[%emt 0:00:07]} c5 {[%emt 0:09:24]} 14. a6 {[%emt 0:01:41]} Bc6 {[%emt 0:00:05]} 15. cxd5 {[%emt 0:00:23]} exd5 {[%emt 0:00:41]} 16. e3 {[%emt 0:01:07]} Bb5 {[%emt 0:06:52]} 17. Rfc1 {[%emt 0:00:08]} Rc8 {[%emt 0:07:11]} 18. Bh3 {[%emt 0:17:15]} Rc7 {[%emt 0:06:42]} 19. dxc5 {[%emt 0:02:48]} Nxc5 20. Nd4 Bd7 {[%emt 0:20:30]} (20... Bxa6 21. b4 $14) ({Much worse is} 20... Nxa6 $6 21. Qb1 $16) 21. Bg2 {[%emt 0:27:53]} Nxa6 {[%emt 0:03:01]} 22. Qb3 {[%emt 0:01:39]} Nb4 {[%emt 0:09:26]} 23. Bxd5 {[%emt 0:00:18]} a5 {[%emt 0:00:43]} 24. Be4 {[%emt 0:00:30]} Bc5 {[%emt 0:01:44]} 25. N2f3 {[%emt 0:02:40]} Qe7 {[%emt 0:03:23]} 26. Bb1 {[%emt 0:03:51]} (26. Ne5 $15) 26... Rd8 {[%emt 0:01:07]} 27. Ng5 {[%emt 0:04:39]} (27. Bd3 $17 {was worth a try.}) 27... g6 {[%emt 0:01:51]} 28. Ndf3 {[%emt 0:02:22]} a4 {[%emt 0:02:25]} (28... Bc6 $142 29. Nh4 Rdd7) 29. Qc4 {[%emt 0:00:52]} (29. Rxa4 $17 Bxa4 30. Qxa4) 29... Bc6 {[%emt 0:04:07]} 30. Be4 {[%emt 0:01:14] [#]} h6 {[%emt 0:04:02]} (30... Be8 $1 $19 31. Bb1 Bd6) 31. Bxc6 {[%emt 0:00:53]} Rxc6 {[%emt 0:00:06]} 32. Qxf7+ {[%emt 0:01:38]} Qxf7 {[%emt 0:00:57]} 33. Nxf7 {[%emt 0:00:00]} Kxf7 {[%emt 0:00:27]} 34. Ne5+ {[%emt 0:00:04]} Kf6 {[%emt 0:00:12]} 35. Nxc6 {[%emt 0:00:03]} Nxc6 {[%emt 0:00:06]} 36. Rxa4 {[%emt 0:00:10]} Rd2 {[%emt 0:00:30]} 37. b3 {[%emt 0:01:16]} Rb2 $2 {[%emt 0:00:17]} (37... Nb4 $11 38. Raa1 Na2) 38. Rxc5 {[%emt 0:00:07]} bxc5 {[%emt 0:00:49]} 39. Ra6 {[%emt 0:00:02]} Kf5 {[%emt 0:00:19]} 40. Rxc6 {[%emt 0:00:06]} Rxb3 {[%emt 0:00:02]} 41. Rxc5+ {[%emt 0:00:04]} Kf6 {[%emt 0:00:06]} 42. Kg2 {[%emt 0:00:17]} Rb2 {[%emt 0:00:06]} 43. Kf3 {[%emt 0:00:25]} Ra2 {[%emt 0:00:10]} 44. Rc6+ {[%emt 0:00:09]} Kf7 {[%emt 0:00:04]} 45. h4 {[%emt 0:00:03]} Kg7 {[%emt 0:00:14]} 46. Rc5 {[%emt 0:00:19]} Ra1 {[%emt 0:00:37]} 47. h5 {[%emt 0:00:19]} gxh5 {[%emt 0:00:14]} 48. Rxh5 {[%emt 0:00:05]} Kg6 {[%emt 0:00:04]} 49. Rc5 {[%emt 0:00:14]} Rf1 {[%emt 0:00:09]} 50. Rc6+ {[%emt 0:00:05]} Kg7 {[%emt 0:00:07]} 51. e4 {[%emt 0:00:08]} h5 {[%emt 0:00:08]} 52. f5 {[%emt 0:00:13]} Kf7 {[%emt 0:00:11]} 53. e5 $18 {[%emt 0:00:04]} Kg7 {[%emt 0:00:24]} 54. Rg6+ {[%emt 0:00:33]} Kh7 {[%emt 0:00:10]} 55. e6 {[%emt 0:00:08]} h4 {[%emt 0:00:11]} 56. e7 {[%emt 0:00:10]} Re1 {[%emt 0:00:06]} 57. Re6 {[%emt 0:00:05]} 1-0